fUST/lending_fUST_20250619
["ID","MTS","AMOUNT","RATE_DAILY","PERIOD"]
[366511476,1750298831399,-359.57624203,0.00023012,6]
[366511477,1750298831422,-460.0,0.00023012,6]
[366511478,1750298831443,-460.0,0.00023012,6]
[366511479,1750298831465,-460.0,0.00023013,6]
[366511480,1750298831486,-460.0,0.00023013,6]
[366511481,1750298831509,-490.17752685,0.00023013,6]
[366511482,1750298831532,-880.17,0.00023013,6]
[366511483,1750298831555,-1333.97,0.00023013,6]
[366511484,1750298831578,-481.68125708,0.00023013,6]
[366511485,1750298831600,-460.0,0.00023013,6]
[366511486,1750298831623,-1246.38,0.00023013,6]
[366511487,1750298831645,-460.0,0.00023013,6]
[366511488,1750298831667,-460.0,0.00023013,6]
[366511489,1750298831688,-460.0,0.00023013,6]
[366511490,1750298831710,-460.0,0.00023013,6]
[366511491,1750298831732,-460.0,0.00023013,6]
[366511492,1750298831754,-441.72820919,0.00023013,6]
[366511493,1750298831776,-460.0,0.00023013,6]
[366511494,1750298831797,-561.58644411,0.00023013,6]
[366511495,1750298831820,-460.0,0.00023013,6]
[366511496,1750298831842,-460.0,0.00023013,6]
[366511497,1750298831864,-460.0,0.00023013,6]
[366511498,1750298831886,-472.68,0.00023013,6]
[366511499,1750298831908,-460.0,0.00023013,6]
[366511500,1750298831930,-460.0,0.00023013,6]
[366511501,1750298831952,-1646.48,0.00023013,6]
[366511502,1750298831975,-1270.47,0.00023013,6]
[366511503,1750298831998,-460.0,0.00023013,6]
[366511504,1750298832021,-460.0,0.00023013,6]
[366511505,1750298832043,-903.74,0.00023013,6]
[366511506,1750298832067,-1443.37,0.00023013,6]
[366511507,1750298832088,-303.189799,0.00023078,5]
[366511508,1750298832116,-275.44469424,0.00023141,8]
[366511509,1750298832138,-303.189799,0.00023193,7]
[366511510,1750298832164,-275.44469424,0.00023279,8]
[366511511,1750298832187,-460.0,0.00023286,6]
[366511512,1750298832207,-460.0,0.00023286,6]
[366511513,1750298832229,-460.0,0.00023286,6]
[366511514,1750298832250,-485.92161592,0.00023286,6]
[366511515,1750298832270,-460.0,0.00023286,6]
[366511516,1750298832291,-460.0,0.00023286,6]
[366511517,1750298832314,-460.0,0.00023286,6]
[366511518,1750298832337,-460.0,0.00023286,6]
[366511519,1750298832362,-460.0,0.00023286,6]
[366511520,1750298832384,-460.0,0.00023286,6]
[366511521,1750298832404,-460.0,0.00023286,6]
[366511522,1750298832426,-651.71,0.00023286,6]
[366511523,1750298832448,-460.0,0.00023286,6]
[366511524,1750298832469,-460.0,0.00023286,6]
[366511525,1750298832490,-460.0,0.00023287,6]
[366511526,1750298832513,-880.17,0.00023287,6]
[366511527,1750298832536,-1333.97,0.00023287,6]
[366511528,1750298832560,-460.0,0.00023287,6]
[366511529,1750298832584,-1246.38,0.00023287,6]
[366511530,1750298832607,-460.0,0.00023287,6]
[366511531,1750298832628,-411.10680584,0.00023287,6]
[366511532,1750298832651,-460.0,0.00023287,6]
[366511533,1750298832676,-460.0,0.00023287,6]
[366511534,1750298832707,-460.0,0.00023287,6]
[366511535,1750298832735,-460.0,0.00023287,6]
[366511536,1750298832906,-460.0,0.00023287,6]
[366511537,1750298832930,-1646.48,0.00023287,6]
[366511538,1750298832956,-1051.71629805,0.00023287,6]
[366511539,1750298835092,-469.68458669,0.00023012,6]
[366511540,1750298835117,-218.75370195,0.00023287,6]
[366511541,1750298835139,-460.0,0.00023287,6]
[366511542,1750298835162,-460.0,0.00023287,6]
[366511543,1750298835185,-903.74,0.00023287,6]
[366511544,1750298835209,-1443.37,0.00023287,6]
[366511545,1750298835231,-965.0,0.00023291,2]
[366511546,1750298835249,-2161.0,0.00023291,2]
[366511547,1750298835269,-654.0,0.00023291,2]
[366511548,1750298835289,-406.0,0.00023291,2]
[366511549,1750298835311,-303.189799,0.00023308,13]
[366511550,1750298835331,-500.0,0.00023333,2]
[366511551,1750298835352,-424.70586748,0.00023343,2]
[366511552,1750298835385,-275.44469424,0.00023417,9]
[366511553,1750298835407,-303.189799,0.00023424,13]
[366511554,1750298835428,-1429.331467,0.00023451,3]
[366511555,1750298835449,-303.189799,0.00023539,8]
[366511556,1750298835469,-174.00284134,0.0002354,2]
[366511557,1750298835498,-275.44469424,0.00023555,9]
[366511558,1750298835518,-460.0,0.0002356,6]
[366511559,1750298835539,-460.0,0.0002356,6]
[366511560,1750298835560,-460.0,0.0002356,6]
[366511561,1750298835580,-460.0,0.0002356,6]
[366511562,1750298835600,-460.0,0.0002356,6]
[366511563,1750298835620,-460.0,0.0002356,6]
[366511564,1750298835641,-415.71409495,0.0002356,6]
[366511565,1750298835662,-460.0,0.0002356,6]
[366511566,1750298835682,-460.0,0.0002356,6]
[366511567,1750298835702,-460.0,0.0002356,6]
[366511568,1750298835722,-460.0,0.0002356,6]
[366511569,1750298835744,-460.0,0.0002356,6]
[366511570,1750298835764,-460.0,0.00023561,6]
[366511571,1750298835786,-880.17,0.00023561,6]
[366511572,1750298835808,-1333.97,0.00023561,6]
[366511573,1750298835830,-460.0,0.00023561,6]
[366511574,1750298835852,-1246.38,0.00023561,6]
[366511575,1750298835872,-460.0,0.00023561,6]
[366511576,1750298835893,-460.0,0.00023561,6]
[366511577,1750298835913,-460.0,0.00023561,6]
[366511578,1750298835934,-410.81,0.00023561,6]
[366511579,1750298835955,-460.0,0.00023561,6]
[366511580,1750298835979,-1646.48,0.00023561,6]
[366511581,1750298836001,-1270.47,0.00023561,6]
[366511582,1750298836022,-460.0,0.00023561,6]
[366511583,1750298836043,-460.0,0.00023561,6]
[366511584,1750298836064,-903.74,0.00023561,6]
[366511585,1750298836086,-1443.37,0.00023561,6]
[366511586,1750298836110,-500.0,0.00023574,2]
[366511587,1750298836131,-150.173,0.00023599,2]
[366511588,1750298836152,-204.312,0.00023599,2]
[366511589,1750298836171,-150.0,0.00023599,2]
[366511590,1750298836194,-3000.0,0.000236,2]
[366511591,1750298836215,-3000.0,0.000236,2]
[366511592,1750298836236,-794.77,0.00023604,2]
[366511593,1750298836255,-3000.0,0.0002361,2]
[366511594,1750298836276,-3000.0,0.0002361,2]
[366511595,1750298836295,-500.0,0.00023611,2]
[366511596,1750298836315,-169.81398473,0.00023614,2]
[366511597,1750298836334,-163.15343317,0.00023619,2]
[366511598,1750298836354,-3000.0,0.0002362,2]
[366511599,1750298836374,-3000.0,0.0002362,2]
[366511600,1750298836395,-3000.0,0.0002363,2]
[366511601,1750298836415,-3000.0,0.0002363,2]
[366511602,1750298836436,-361.07862858,0.00023633,2]
[366511603,1750298836456,-3000.0,0.0002364,2]
[366511604,1750298836476,-3000.0,0.0002364,2]
[366511605,1750298836497,-3000.0,0.0002365,2]
[366511606,1750298836517,-3000.0,0.0002365,2]
[366511607,1750298836537,-303.189799,0.00023654,12]
[366511608,1750298836556,-3000.0,0.0002366,2]
[366511609,1750298836577,-3000.0,0.0002366,2]
[366511610,1750298836598,-3000.0,0.0002367,2]
[366511611,1750298836617,-3000.0,0.0002367,2]
[366511612,1750298836636,-501.87433266,0.00023673,2]
[366511613,1750298836657,-1443.04606635,0.0002368,2]
[366511614,1750298844758,1627.0,0.0001911,2]
[366511615,1750298867007,150.0,0.00018568,2]
[366511618,1750298947009,150.0,0.00018508,2]
[366511619,1750298948090,-150.0,0.00019452,2]
[366511620,1750298948111,-212.11,0.00020271,2]
[366511621,1750298948136,-35.77,0.0002112,2]
[366511622,1750298956161,-299.88,0.0002112,2]
[366511623,1750299024089,163.421253,0.00013699,2]
[366511625,1750299026213,150.0,0.00018833,2]
[366511659,1750299032195,-150.0,0.0001973,2]
[366511661,1750299032206,-192.56,0.00020627,2]
[366511663,1750299032215,-57.27326295,0.0002112,2]
[366511665,1750299032224,-256.75,0.00021523,2]
[366511667,1750299032234,-300.0,0.00021916,2]
[366511669,1750299032244,-627.98,0.00021917,6]
[366511671,1750299032253,-460.0,0.00021917,6]
[366511673,1750299032263,-460.0,0.00021917,6]
[366511675,1750299032272,-246.9981981,0.00021917,6]
[366511677,1750299032281,-889.31,0.00021917,6]
[366511679,1750299032290,-1100.46,0.00021917,6]
[366511681,1750299032299,-486.35804137,0.00021917,6]
[366511683,1750299032308,-460.0,0.00021917,6]
[366511686,1750299032318,-505.42919388,0.00021917,6]
[366511688,1750299032328,-1205.0,0.00021917,6]
[366511691,1750299032337,-460.0,0.00021917,6]
[366511694,1750299032347,-496.63,0.00021917,6]
[366511697,1750299032356,-532.85,0.00021917,6]
[366511699,1750299032365,-460.0,0.00021917,6]
[366511701,1750299032374,-471.46071303,0.00021917,6]
[366511703,1750299032383,-460.0,0.00021917,6]
[366511705,1750299032392,-342.75084915,0.00021917,6]
[366511707,1750299032402,-460.0,0.00021917,6]
[366511709,1750299032411,-460.0,0.00021917,6]
[366511711,1750299032420,-460.0,0.00021917,6]
[366511713,1750299032430,-473.79968155,0.00021917,6]
[366511715,1750299032439,-460.0,0.00021917,6]
[366511717,1750299032449,-473.62105939,0.00021917,6]
[366511719,1750299032458,-460.0,0.00021917,6]
[366511721,1750299032468,-552.71,0.00021917,6]
[366511723,1750299032478,-460.0,0.00021917,6]
[366511725,1750299032487,-460.0,0.00021917,6]
[366511727,1750299032497,-468.36055761,0.00021917,6]
[366511729,1750299032506,-460.0,0.00021917,6]
[366511731,1750299032515,-584.49,0.00021917,6]
[366511733,1750299032525,-406.6968434,0.00021917,6]
[366511735,1750299032534,-1166.26,0.00021917,6]
[366511737,1750299032543,-460.92176475,0.00021917,6]
[366511740,1750299032554,-187.65260261,0.00021917,6]
[366511742,1750299032564,-350.71010483,0.00021917,6]
[366511744,1750299032573,-460.0,0.00021917,6]
[366511746,1750299032581,-460.0,0.00021917,6]
[366511748,1750299032591,-1128.81,0.00021917,6]
[366511750,1750299032600,-460.0,0.00021917,6]
[366511752,1750299032609,-464.2558074,0.00021917,6]
[366511754,1750299032618,-445.35124996,0.00021917,6]
[366511756,1750299032627,-498.75614513,0.00021917,6]
[366511758,1750299032638,-460.0,0.00021917,6]
[366511760,1750299032647,-460.0,0.00021917,6]
[366511762,1750299032656,-669.21,0.00021917,6]
[366511764,1750299032665,-627.98,0.00022191,6]
[366511766,1750299032675,-268.34,0.00022191,6]
[366511768,1750299032684,-460.0,0.00022191,6]
[366511770,1750299032693,-889.31,0.00022191,6]
[366511772,1750299032703,-1100.46,0.00022191,6]
[366511774,1750299032713,-460.0,0.00022191,6]
[366511776,1750299032722,-1205.0,0.00022191,6]
[366511778,1750299032732,-460.0,0.00022191,6]
[366511780,1750299032741,-496.63,0.00022191,6]
[366511781,1750299032752,-561.15,0.00022191,6]
[366511782,1750299032761,-460.0,0.00022191,6]
[366511783,1750299032771,-460.0,0.00022191,6]
[366511784,1750299032781,-473.34333919,0.00022191,6]
[366511785,1750299032790,-460.0,0.00022191,6]
[366511786,1750299032800,-460.0,0.00022191,6]
[366511787,1750299032810,-460.0,0.00022191,6]
[366511788,1750299032819,-460.0,0.00022191,6]
[366511789,1750299032829,-584.49,0.00022191,6]
[366511790,1750299032838,-1166.26,0.00022191,6]
[366511792,1750299032848,-460.0,0.00022191,6]
[366511794,1750299032857,-460.0,0.00022191,6]
[366511796,1750299032866,-1128.81,0.00022191,6]
[366511798,1750299032875,-460.0,0.00022191,6]
[366511800,1750299032885,-245.94132363,0.00022191,6]
[366511802,1750299032896,-460.0,0.00022191,6]
[366511804,1750299032906,-669.21,0.00022191,6]
[366511806,1750299032915,-320.93,0.0002242,2]
[366511808,1750299032925,-465.45325345,0.00022464,6]
[366511810,1750299032934,-402.65815681,0.00022464,6]
[366511812,1750299032943,-460.0,0.00022464,2]
[366511814,1750299032952,-460.0,0.00022464,6]
[366511816,1750299032961,-627.98,0.00022465,6]
[366511818,1750299032971,-460.0,0.00022465,6]
[366511820,1750299032980,-889.31,0.00022465,6]
[366511822,1750299032990,-1100.46,0.00022465,6]
[366511824,1750299032999,-1205.0,0.00022465,6]
[366511826,1750299033008,-460.0,0.00022465,6]
[366511828,1750299033017,-496.63,0.00022465,6]
[366511830,1750299033027,-460.0,0.00022465,6]
[366511832,1750299033038,-460.0,0.00022465,6]
[366511834,1750299033048,-460.0,0.00022465,6]
[366511836,1750299033057,-460.0,0.00022465,6]
[366511838,1750299033068,-460.0,0.00022465,6]
[366511840,1750299033077,-584.49,0.00022465,6]
[366511842,1750299033087,-1166.26,0.00022465,6]
[366511844,1750299033097,-460.0,0.00022465,6]
[366511846,1750299033106,-159.42927691,0.00022465,6]
[366511848,1750299033116,-1128.81,0.00022465,6]
[366511850,1750299033125,-460.0,0.00022465,6]
[366511852,1750299033135,-460.0,0.00022465,6]
[366511854,1750299033145,-669.21,0.00022465,6]
[366511856,1750299033154,-666.0,0.00022473,2]
[366511858,1750299033166,-479.2983316,0.00022738,2]
[366511860,1750299033176,-4.5499001,0.00022739,6]
[366511872,1750299033290,-399.8652628,0.00022739,6]
[366511875,1750299033307,-223.5648371,0.00022739,6]
[366511877,1750299033316,-460.0,0.00022739,6]
[366511879,1750299033326,-889.31,0.00022739,6]
[366511881,1750299033336,-1100.46,0.00022739,6]
[366511883,1750299033344,-1205.0,0.00022739,6]
[366511884,1750299033354,-460.0,0.00022739,6]
[366511886,1750299033363,-496.63,0.00022739,6]
[366511888,1750299033373,-460.0,0.00022739,6]
[366511890,1750299033382,-460.0,0.00022739,6]
[366511892,1750299033392,-460.0,0.00022739,6]
[366511894,1750299033402,-460.0,0.00022739,6]
[366511895,1750299033412,-460.0,0.00022739,6]
[366511896,1750299033422,-584.49,0.00022739,6]
[366511897,1750299033431,-1166.26,0.00022739,6]
[366511898,1750299033441,-460.0,0.00022739,6]
[366511899,1750299033451,-1128.81,0.00022739,6]
[366511900,1750299033462,-460.0,0.00022739,6]
[366511901,1750299033472,-460.0,0.00022739,6]
[366511902,1750299033481,-669.21,0.00022739,6]
[366511903,1750299033491,-203.58955666,0.000229,8]
[366511904,1750299033501,-460.0,0.00023012,6]
[366511905,1750299033510,-460.0,0.00023012,6]
[366511906,1750299033519,-460.0,0.00023012,6]
[366511907,1750299033529,-460.0,0.00023012,6]
[366511908,1750299033538,-627.98,0.00023013,6]
[366511909,1750299033548,-460.0,0.00023013,6]
[366511910,1750299033557,-889.31,0.00023013,6]
[366511911,1750299033567,-1100.46,0.00023013,6]
[366511912,1750299033577,-1205.0,0.00023013,6]
[366511913,1750299033586,-460.0,0.00023013,6]
[366511914,1750299033596,-496.63,0.00023013,6]
[366511915,1750299033606,-460.0,0.00023013,6]
[366511916,1750299033615,-460.0,0.00023013,6]
[366511917,1750299033624,-460.0,0.00023013,6]
[366511918,1750299033633,-460.0,0.00023013,6]
[366511919,1750299033643,-584.49,0.00023013,6]
[366511920,1750299033652,-1166.26,0.00023013,6]
[366511921,1750299033662,-330.0466092,0.00023013,6]
[366511922,1750299033672,-1128.81,0.00023013,6]
[366511923,1750299033682,-460.0,0.00023013,6]
[366511924,1750299033691,-460.0,0.00023013,6]
[366511925,1750299033701,-669.21,0.00023013,6]
[366511926,1750299033711,-203.58955661,0.00023036,8]
[366511927,1750299033721,-203.58955661,0.00023173,8]
[366511928,1750299033730,-460.0,0.00023286,6]
[366511929,1750299033739,-513.67,0.00023286,6]
[366511930,1750299033749,-470.1288852,0.00023286,6]
[366511931,1750299033759,-398.70904081,0.00023287,6]
[366511932,1750299033771,-229.27095919,0.00023287,6]
[366511933,1750299033781,-460.0,0.00023287,6]
[366511934,1750299033791,-889.31,0.00023287,6]
[366511935,1750299033801,-1100.46,0.00023287,6]
[366511936,1750299033811,-1205.0,0.00023287,6]
[366511937,1750299033820,-460.0,0.00023287,6]
[366511938,1750299033829,-496.63,0.00023287,6]
[366511939,1750299033839,-546.08491342,0.00023287,6]
[366511940,1750299033848,-460.0,0.00023287,6]
[366511941,1750299033858,-460.0,0.00023287,6]
[366511942,1750299033869,-460.0,0.00023287,6]
[366511943,1750299033879,-584.49,0.00023287,6]
[366511944,1750299033889,-1166.26,0.00023287,6]
[366511945,1750299033899,-1128.81,0.00023287,6]
[366511946,1750299033909,-460.0,0.00023287,6]
[366511947,1750299033918,-460.0,0.00023287,6]
[366511948,1750299033928,-669.21,0.00023287,6]
[366511949,1750299033938,-203.58955661,0.00023309,9]
[366511950,1750299033947,-385.12,0.00023317,2]
[366511951,1750299033956,-293.85068442,0.00023414,2]
[366511952,1750299033965,-424.78309573,0.00023414,2]
[366511953,1750299033974,-203.58955661,0.00023445,9]
[366511954,1750299033984,-1225.141257,0.00023451,3]
[366511955,1750299033993,-154.9888424,0.00023507,2]
[366511956,1750299034002,-161.7842806,0.00023507,2]
[366511957,1750299034012,-584.3286538,0.00023507,2]
[366511958,1750299034021,-153.0,0.00023507,2]
[366511959,1750299034031,-180.7933906,0.00023507,2]
[366511960,1750299034041,-460.0,0.0002356,6]
[366511961,1750299034050,-627.98,0.00023561,6]
[366511962,1750299034059,-460.0,0.00023561,6]
[366511963,1750299034069,-889.31,0.00023561,6]
[366511964,1750299034079,-1100.46,0.00023561,6]
[366511965,1750299034089,-1205.0,0.00023561,6]
[366511966,1750299034098,-460.0,0.00023561,6]
[366511967,1750299034108,-496.63,0.00023561,6]
[366511968,1750299034117,-460.0,0.00023561,6]
[366511969,1750299034127,-460.0,0.00023561,6]
[366511970,1750299034138,-460.0,0.00023561,6]
[366511971,1750299034148,-584.49,0.00023561,6]
[366511972,1750299034157,-1166.26,0.00023561,6]
[366511973,1750299034171,-1128.81,0.00023561,6]
[366511974,1750299034180,-460.0,0.00023561,6]
[366511975,1750299034190,-460.0,0.00023561,6]
[366511976,1750299034199,-669.21,0.00023561,6]
[366511977,1750299034209,-203.58955661,0.00023582,9]
[366511978,1750299034218,-505.24461581,0.0002361,2]
[366511979,1750299034229,-207.4,0.00023666,2]
[366511980,1750299034239,-1556.95393365,0.0002368,2]
[366511981,1750299034249,-3000.0,0.0002368,2]
[366511982,1750299034259,-169.81398473,0.0002368,2]
[366511983,1750299034269,-3000.0,0.0002369,2]
[366511984,1750299034279,-3000.0,0.0002369,2]
[366511985,1750299034288,-3000.0,0.000237,2]
[366511986,1750299034298,-3000.0,0.000237,2]
[366511987,1750299034307,-3000.0,0.0002371,2]
[366511988,1750299034317,-3000.0,0.0002371,2]
[366511989,1750299034327,-203.58955661,0.00023718,9]
[366511990,1750299034336,-3000.0,0.0002372,2]
[366511991,1750299034346,-3000.0,0.0002372,2]
[366511992,1750299034356,-3000.0,0.0002373,2]
[366511993,1750299034365,-3000.0,0.0002373,2]
[366511994,1750299034375,-3000.0,0.0002374,2]
[366511995,1750299034385,-3000.0,0.0002374,2]
[366511996,1750299034395,-3000.0,0.0002375,2]
[366511997,1750299034405,-3000.0,0.0002375,2]
[366511998,1750299034414,-3000.0,0.0002376,2]
[366511999,1750299034423,-3000.0,0.0002376,2]
[366512000,1750299034434,-303.189799,0.0002377,12]
[366512001,1750299034443,-3000.0,0.0002377,2]
[366512002,1750299034453,-3000.0,0.0002377,2]
[366512003,1750299034462,-3000.0,0.0002378,2]
[366512004,1750299034472,-3000.0,0.0002378,2]
[366512005,1750299034481,-168.0,0.0002378,2]
[366512006,1750299034490,-3000.0,0.0002379,2]
[366512007,1750299034500,-3000.0,0.0002379,2]
[366512008,1750299034509,-3000.0,0.000238,2]
[366512009,1750299034519,-3000.0,0.000238,2]
[366512010,1750299034528,-3000.0,0.0002381,2]
[366512011,1750299034537,-2534.84213167,0.0002381,2]
[366512046,1750299038147,-489.59801112,0.00021917,6]
[366512047,1750299038156,-460.0,0.00021917,6]
[366512051,1750299038179,-467.34414703,0.00021917,6]
[366512071,1750299038355,-460.0,0.00021917,6]
[366512074,1750299038365,-404.07326253,0.00021917,6]
[366512076,1750299038375,-460.0,0.00022191,6]
[366512078,1750299038384,-460.0,0.00022465,6]
[366512079,1750299038393,-460.0,0.00022739,6]
[366512082,1750299038403,-465.15786833,0.0002381,2]
[366512083,1750299038412,-420.0,0.00023817,2]
[366512085,1750299038421,-3000.0,0.0002382,2]
[366512088,1750299038431,-3000.0,0.0002382,2]
[366512090,1750299038441,-3000.0,0.0002383,2]
[366512092,1750299038450,-3000.0,0.0002383,2]
[366512093,1750299038460,-3492.49845894,0.0002383,2]
[366512095,1750299038470,-460.0,0.00023834,6]
[366512096,1750299038479,-460.0,0.00023834,6]
[366512097,1750299038489,-460.0,0.00023834,6]
[366512098,1750299038499,-460.0,0.00023834,6]
[366512099,1750299038509,-460.0,0.00023834,6]
[366512100,1750299038518,-460.0,0.00023834,6]
[366512101,1750299038527,-460.0,0.00023835,6]
[366512102,1750299038541,-903.74,0.00023835,6]
[366512103,1750299038551,-1443.37,0.00023835,6]
[366512104,1750299038560,-627.98,0.00023835,6]
[366512105,1750299038569,-460.0,0.00023835,6]
[366512106,1750299038579,-889.31,0.00023835,6]
[366512107,1750299038589,-1100.46,0.00023835,6]
[366512108,1750299038598,-1205.0,0.00023835,6]
[366512109,1750299038607,-460.0,0.00023835,6]
[366512110,1750299038616,-496.63,0.00023835,6]
[366512111,1750299038626,-460.0,0.00023835,6]
[366512112,1750299038635,-460.0,0.00023835,6]
[366512113,1750299038643,-460.0,0.00023835,6]
[366512114,1750299038652,-584.49,0.00023835,6]
[366512115,1750299038661,-1166.26,0.00023835,6]
[366512116,1750299038671,-1128.81,0.00023835,6]
[366512117,1750299038679,-460.0,0.00023835,6]
[366512118,1750299038688,-460.0,0.00023835,6]
[366512119,1750299038698,-669.21,0.00023835,6]
[366512120,1750299038706,-3000.0,0.0002384,2]
[366512121,1750299038715,-3000.0,0.0002384,2]
[366512122,1750299038724,-3000.0,0.0002385,2]
[366512123,1750299038733,-3000.0,0.0002385,2]
[366512124,1750299038741,-203.58955661,0.00023855,10]
[366512125,1750299038750,-3000.0,0.0002386,2]
[366512126,1750299038759,-3000.0,0.0002386,2]
[366512127,1750299038768,-3000.0,0.0002387,2]
[366512128,1750299038778,-3000.0,0.0002387,2]
[366512129,1750299038789,-5810.394259,0.0002388,2]
[366512130,1750299038798,-3000.0,0.0002388,2]
[366512131,1750299038807,-303.189799,0.00023885,11]
[366512132,1750299038816,-654.0,0.00023889,6]
[366512133,1750299038825,-151.0,0.00023889,6]
[366512134,1750299038835,-209.22142242,0.00023889,6]
[366512135,1750299038845,-198.53820546,0.00023889,6]
[366512136,1750299038854,-500.0,0.00023889,6]
[366512137,1750299038864,-500.0,0.00023889,6]
[366512138,1750299038873,-214.21196469,0.00023889,6]
[366512139,1750299038882,-198.94213369,0.00023889,6]
[366512140,1750299038893,-500.0,0.00023889,6]
[366512141,1750299038903,-3000.0,0.0002389,2]
[366512142,1750299038912,-398434.39273,0.00023899,4]
[366512143,1750299038921,-2000.0,0.000239,2]
[366512144,1750299038931,-1664.55,0.000239,2]
[366512145,1750299038941,-3000.0,0.000239,2]
[366512146,1750299038950,-151.0,0.000239,7]
[366512147,1750299038960,-1008.236827,0.000239,5]
[366512148,1750299038970,-642.0,0.000239,2]
[366512149,1750299038980,-3000.0,0.0002391,2]
[366512150,1750299038990,-160.0,0.00023915,2]
[366512151,1750299038999,-845.78193577,0.00023915,2]
[366512152,1750299039008,-654.0,0.00023916,6]
[366512153,1750299039018,-215.69663248,0.00023916,6]
[366512154,1750299039027,-504.70159493,0.00023916,6]
[366512155,1750299039036,-500.0,0.00023916,6]
[366512156,1750299039046,-500.0,0.00023916,6]
[366512157,1750299039055,-2000.0,0.00023917,7]
[366512158,1750299039064,-2000.0,0.00023917,7]
[366512159,1750299039073,-2000.0,0.00023917,7]
[366512160,1750299039082,-2000.0,0.00023917,7]
[366512161,1750299039092,-2000.0,0.00023917,7]
[366512162,1750299039101,-2000.0,0.00023917,7]
[366512163,1750299039110,-2000.0,0.00023917,7]
[366512164,1750299039119,-2000.0,0.00023917,7]
[366512165,1750299039129,-2000.0,0.00023917,7]
[366512166,1750299039138,-2000.0,0.00023917,7]
[366512167,1750299039147,-1505.05006811,0.00023917,7]
[366512168,1750299039157,-3000.0,0.0002392,2]
[366512169,1750299039166,-500.0,0.00023929,2]
[366512170,1750299039175,-500.0,0.00023929,2]
[366512171,1750299039185,-478.31244319,0.00023929,6]
[366512172,1750299039194,-1868.88,0.00023929,6]
[366512173,1750299039206,-460.0,0.00023929,6]
[366512174,1750299039215,-460.0,0.00023929,6]
[366512175,1750299039225,-757373.36039916,0.0002393,15]
[366512177,1750299039649,-8837.757221,0.0002393,15]
[366512188,1750299040410,-73323.86847308,0.0002393,15]
[366512189,1750299040422,-840.55980525,0.0002393,15]
[366512190,1750299040439,-469.88910191,0.00022464,6]
[366512191,1750299040451,-4056.37936263,0.0002393,15]
[366512234,1750299043233,-262.248948,0.00021917,6]
[366512239,1750299043399,-122.01536654,0.00021917,6]
[366512240,1750299043411,-1014.17920724,0.0002393,15]
[366512241,1750299043425,-11637.54944315,0.0002393,15]
[366512242,1750299043436,-159.395587,0.0002393,7]
[366512243,1750299043447,-151.0,0.0002393,7]
[366512244,1750299043458,-151.0,0.0002393,7]
[366512245,1750299043469,-275.950328,0.0002393,7]
[366512246,1750299043479,-3000.0,0.0002393,2]
[366512247,1750299043490,-1435.06380718,0.0002393,7]
[366512248,1750299043501,-200.49085379,0.00023939,2]
[366512249,1750299043512,-815.8128326,0.0002394,2]
[366512250,1750299043525,-16303.34415618,0.0002394,2]
[366512251,1750299043540,-22812.57352655,0.0002394,2]
[366512252,1750299043551,-65712.40584345,0.0002394,2]
[366512253,1750299043562,-12948.84760158,0.0002394,7]
[366512287,1750299048738,-800.59,0.00021917,6]
[366512288,1750299048748,-800.59,0.00022191,6]
[366512289,1750299048759,-800.59,0.00022465,6]